[Event "29th Czech Open-Rapid 2018"]
[Site "Pardubice"]
[Date "2018.07.19"]
[Round "4"]
[White "Balint, Vilmos"]
[Black "Zdrazil, Tomas"]
[Result "1/2-1/2"]
[ECO "D79"]
[WhiteElo "2226"]
[BlackElo "2017"]
[Annotator "NA"]
[PlyCount "174"]
[EventDate "2018.07.18"]
[EventType "swiss"]
[EventCountry "CZE"]
[SourceTitle "playchess.com"]
[Source "ChessBase"]
[SourceQuality "1"]
[TimeControl "900+10"]

1. Nf3 {[%emt 0:00:24]} Nf6 {[%emt 0:00:00]} 2. g3 {[%emt 0:00:00]} g6 {[%emt 0:00:00]} 3. Bg2 {[%emt 0:00:01]} Bg7 {[%emt 0:00:00]} 4. O-O {[%emt 0:00:02]} O-O {[%emt 0:00:00]} 5. c4 {[%emt 0:00:00]} c6 {[%emt 0:00:35]} 6. d4 {[%emt 0:00:07]} d5 {[%emt 0:00:02] LiveBook: 2948 Games} 7. cxd5 {[%emt 0:00:30]} cxd5 {[%emt 0:00:20]} 8. Ne5 {[%emt 0:00:14]} Nbd7 {[%emt 0:03:10]} 9. Nc3 {[%emt 0:01:26]} Nb6 {[%emt 0:05:07] D79: Fianchetto Grünfeld: Symmetrical Variation (6 0-0 c6 7 cxd5 cxd5)} 10. b3 {[%emt 0:03:11]} Be6 {[%emt 0:00:09]} (10... Bf5 11. Bb2 Rc8 12. Rc1 Ng4 13. Nxg4 Bxg4 14. a4 Bh6 15. f4 a5 16. Qd3 Bg7 17. e3 {½-½ (49) Tadic,B (2472)-Skoberne,J (2542) chess.com INT 2017}) 11. Ba3 {[%emt 0:00:22]} Nfd7 $146 {[%emt 0:00:47]} ({Predecessor:} 11... Re8 12. Qd2 Nfd7 13. Nf3 h6 14. Rac1 a6 15. e3 Rc8 16. Ne2 Nf6 17. Ne5 {½-½ (32) Lang,U (1994)-Just,J (2151) Bad Wiessee 2003}) 12. Nf3 {[%emt 0:00:38]} Nf6 {[%emt 0:01:03]} 13. Rc1 {[%emt 0:01:20]} Rc8 {[%emt 0:00:54]} 14. Ne5 {[%emt 0:00:52]} Nfd7 {[%emt 0:00:27]} 15. f4 {[%emt 0:00:18]} Nxe5 {[%emt 0:00:37]} 16. fxe5 {[%emt 0:02:16]} Bh6 {[%emt 0:00:24]} 17. Rc2 {[%emt 0:00:08]} Bf5 {[%emt 0:00:33]} 18. e4 {[%emt 0:01:01]} dxe4 {[%emt 0:00:02]} 19. Bxe4 {[%emt 0:00:30]} Bxe4 {[%emt 0:00:35]} 20. Nxe4 {[%emt 0:00:02]} Rxc2 {[%emt 0:00:02]} 21. Qxc2 {[%emt 0:00:01]} Qxd4+ {[%emt 0:00:03]} 22. Kg2 {[%emt 0:00:35]} Qxe5 {[%emt 0:00:29]} 23. Bb2 {[%emt 0:00:14]} Qd5 {[%emt 0:01:06]} 24. Rd1 {[%emt 0:00:05]} Qc6 {[%emt 0:00:07]} 25. Qxc6 {[%emt 0:00:09]} bxc6 {[%emt 0:00:02]} 26. a4 {[%emt 0:00:13]} Nd5 {[%emt 0:00:09]} 27. Kf3 {[%emt 0:00:08]} Bg7 {[%emt 0:00:23]} 28. Ba3 {[%emt 0:00:04]} Rb8 {[%emt 0:00:48]} 29. Rd3 {[%emt 0:00:04]} f5 {[%emt 0:00:43]} 30. Nc5 {[%emt 0:00:10]} e5 {[%emt 0:00:03]} 31. Rd1 {[%emt 0:00:04]} e4+ {[%emt 0:00:02]} 32. Kf2 {[%emt 0:00:05]} a5 {[%emt 0:00:57]} 33. g4 {[%emt 0:00:09]} Re8 {[%emt 0:00:15]} 34. gxf5 {[%emt 0:00:02]} gxf5 {[%emt 0:00:01]} 35. Nb7 {[%emt 0:00:17]} Rb8 {[%emt 0:00:33]} 36. Nxa5 {[%emt 0:00:02]} f4 {[%emt 0:00:18]} 37. Bd6 {[%emt 0:00:10]} Re8 {[%emt 0:00:08]} 38. Nxc6 {[%emt 0:00:04]} Nc3 {[%emt 0:00:08]} 39. Rc1 {[%emt 0:00:08]} e3+ {[%emt 0:00:02]} 40. Kf3 {[%emt 0:00:01]} e2 {[%emt 0:00:01]} 41. Ne7+ {[%emt 0:00:42]} Kf7 {[%emt 0:00:01]} 42. a5 $2 {[%emt 0:00:27]} (42. Re1 $17 {ist der einzige Weg für Weiss..}) 42... Rxe7 {[%emt 0:00:36]} 43. Bxe7 {[%emt 0:00:02]} Kxe7 {[%emt 0:00:01]} 44. a6 {[%emt 0:00:01]} Bd4 {[%emt 0:00:06]} 45. b4 {[%emt 0:00:36]} Kd6 {[%emt 0:00:18]} 46. b5 {[%emt 0:00:15]} Be3 {[%emt 0:00:18]} 47. Ra1 {[%emt 0:00:11]} Nxb5 48. Kxe2 {[%emt 0:00:01]} Kc6 {[%emt 0:00:20]} 49. Kf3 {[%emt 0:00:42]} Kb6 {[%emt 0:00:02]} 50. Rd1 {[%emt 0:00:01]} Kxa6 {[%emt 0:00:19]} 51. Rd7 {[%emt 0:00:01]} h6 {[%emt 0:00:12]} 52. Rh7 {[%emt 0:00:03]} Nd4+ {[%emt 0:00:07]} 53. Ke4 {[%emt 0:00:01]} Kb5 {[%emt 0:00:03]} 54. Rxh6 {[%emt 0:00:02]} Kc4 {[%emt 0:00:04]} 55. Rh8 {[%emt 0:00:06]} Ne6 {[%emt 0:00:14]} 56. Rc8+ {[%emt 0:00:04]} Nc5+ {[%emt 0:00:01]} 57. Kf3 {[%emt 0:00:08]} Kd4 {[%emt 0:00:05]} 58. h4 {[%emt 0:00:02]} Ke5 {[%emt 0:00:07]} 59. h5 {[%emt 0:00:06]} Kf5 {[%emt 0:00:05]} 60. Rg8 {[%emt 0:00:06]} Ne6 {[%emt 0:00:04]} 61. h6 {[%emt 0:00:04]} Nd4+ {[%emt 0:00:05]} 62. Kg2 {[%emt 0:00:01]} f3+ {[%emt 0:00:03]} 63. Kg3 {[%emt 0:00:05]} Bxh6 {[%emt 0:00:04]} 64. Rd8 {[%emt 0:00:10]} Bf4+ {[%emt 0:00:09]} 65. Kf2 {[%emt 0:00:01]} Ne6 {[%emt 0:00:56]} 66. Ra8 $2 {[%emt 0:00:15]} (66. Rg8 $11) 66... Kg4 {[%emt 0:00:12]} 67. Rg8+ {[%emt 0:00:18]} Ng5 {[%emt 0:00:19]} 68. Rg7 {[%emt 0:00:01]} Bg3+ {[%emt 0:00:08]} 69. Ke3 {[%emt 0:00:01]} f2 {[%emt 0:00:08]} 70. Ke2 {[%emt 0:00:01]} Kf4 {[%emt 0:00:11]} 71. Rg8 {[%emt 0:00:09]} Nh3 {[%emt 0:00:05]} 72. Rf8+ {[%emt 0:00:07]} Ke4 {[%emt 0:00:10]} 73. Re8+ {[%emt 0:00:05]} Kf4 {[%emt 0:00:14]} 74. Rf8+ {[%emt 0:00:02]} Kg4 {[%emt 0:00:02]} 75. Rg8+ {[%emt 0:00:02]} Ng5 {[%emt 0:00:17]} 76. Kf1 {[%emt 0:00:17]} Bh4 {[%emt 0:00:14]} 77. Kg2 {[%emt 0:00:02]} Kf4 {[%emt 0:00:05]} 78. Rf8+ {[%emt 0:00:01]} Ke3 {[%emt 0:00:03]} 79. Re8+ {[%emt 0:00:03]} Ne4 {[%emt 0:00:05]} 80. Re6 {[%emt 0:00:04]} Bg3 {[%emt 0:00:28]} 81. Re8 {[%emt 0:00:04]} Bh4 {[%emt 0:00:07]} 82. Re6 $11 {[%emt 0:00:19]} Kd3 {[%emt 0:00:02]} 83. Re5 {[%emt 0:00:36]} Kd4 {[%emt 0:00:15]} 84. Rf5 {[%emt 0:00:10]} Bg3 {[%emt 0:00:14]} 85. Rf8 {[%emt 0:00:02]} Ke3 {[%emt 0:00:06]} 86. Re8 {[%emt 0:00:06]} Kd3 {[%emt 0:00:14]} 87. Rd8+ {[%emt 0:00:01]} Ke3 {[%emt 0:00:10]} 1/2-1/2

[Event "29th Czech Open-Rapid 2018"]
[Site "Pardubice"]
[Date "2018.07.19"]
[Round "4"]
[White "Zhuravlev, Stepan"]
[Black "Priyanka, Nutakki"]
[Result "1/2-1/2"]
[ECO "E32"]
[WhiteElo "2206"]
[BlackElo "1839"]
[Annotator "NA"]
[PlyCount "102"]
[EventDate "2018.07.18"]
[EventType "swiss"]
[EventCountry "CZE"]
[SourceTitle "playchess.com"]
[Source "ChessBase"]
[SourceQuality "1"]
[TimeControl "900+10"]

1. d4 {[%emt 0:00:00]} Nf6 {[%emt 0:00:00]} 2. c4 {[%emt 0:00:00]} e6 {[%emt 0:00:00]} 3. Nc3 {[%emt 0:00:00]} Bb4 {[%emt 0:00:00]} 4. Qc2 {[%emt 0:00:01]} O-O {[%emt 0:00:01]} 5. a3 {[%emt 0:00:04]} Bxc3+ {[%emt 0:00:03]} 6. Qxc3 {[%emt 0:00:02]} d6 {[%emt 0:00:17]} 7. Bg5 {[%emt 0:01:08]} Nbd7 {[%emt 0:00:13]} 8. e3 {[%emt 0:01:00]} h6 {[%emt 0:00:17]} 9. Bh4 {[%emt 0:00:45]} e5 {[%emt 0:00:14]} 10. Bd3 {[%emt 0:01:14]} Re8 {[%emt 0:01:50]} 11. Ne2 {[%emt 0:01:05]} Nf8 {[%emt 0:00:43]} 12. h3 {[%emt 0:01:43]} c6 {[%emt 0:00:55]} 13. O-O-O {[%emt 0:01:13]} e4 {[%emt 0:00:42]} 14. Bc2 {[%emt 0:00:26]} d5 {[%emt 0:00:02]} 15. c5 {[%emt 0:00:32]} Ng6 {[%emt 0:01:56]} 16. Bg3 {[%emt 0:00:20]} a5 {[%emt 0:00:31]} 17. Bh2 {[%emt 0:00:33]} b6 {[%emt 0:00:33]} 18. Bd6 {[%emt 0:00:55]} Ba6 {[%emt 0:00:05]} 19. Nf4 {[%emt 0:00:37]} Nxf4 {[%emt 0:00:24]} 20. Bxf4 {[%emt 0:00:04]} bxc5 {[%emt 0:01:51]} 21. dxc5 {[%emt 0:00:27]} Nd7 {[%emt 0:00:32]} 22. Ba4 {[%emt 0:00:52]} Rc8 {[%emt 0:00:47]} 23. Rhg1 {[%emt 0:00:35]} Qf6 24. Qxa5 {[%emt 0:02:01]} Be2 {[%emt 0:02:05]} 25. Rd2 {[%emt 0:00:33]} Ra8 {[%emt 0:00:03]} 26. Qb4 {[%emt 0:00:23]} Bc4 {[%emt 0:02:59]} 27. Bd6 {[%emt 0:00:14]} Ne5 {[%emt 0:00:22]} 28. Bc2 {[%emt 0:01:20]} Qg5 {[%emt 0:00:05]} 29. Rdd1 {[%emt 0:01:22]} Qf6 {[%emt 0:00:44]} 30. Rd2 {[%emt 0:00:03]} Qg5 {[%emt 0:00:01]} 31. Rdd1 {[%emt 0:00:16]} Be2 {[%emt 0:01:09]} 32. Rde1 {[%emt 0:00:10]} Bd3 {[%emt 0:00:09]} 33. Bxe5 {[%emt 0:00:08]} Qxe5 {[%emt 0:00:01]} 34. Qd4 {[%emt 0:00:23]} Qf5 {[%emt 0:00:29]} 35. f4 {[%emt 0:00:09]} Bxc2 {[%emt 0:00:25]} 36. Kxc2 {[%emt 0:00:01]} Reb8 {[%emt 0:00:15]} 37. Ra1 {[%emt 0:00:08]} Qh5 {[%emt 0:00:14]} 38. Qd1 {[%emt 0:00:19]} Qf5 {[%emt 0:00:08]} 39. Qd4 {[%emt 0:00:01]} Qh5 {[%emt 0:00:01]} 40. Qd1 {[%emt 0:00:03]} Qf5 {[%emt 0:00:01]} 41. g4 {[%emt 0:00:04]} Qc8 {[%emt 0:00:10]} 42. b4 {[%emt 0:00:24]} Qa6 {[%emt 0:00:07]} 43. Qd4 {[%emt 0:00:12]} Qe2+ {[%emt 0:00:14]} 44. Qd2 {[%emt 0:00:13]} Qc4+ {[%emt 0:00:02]} 45. Qc3 {[%emt 0:00:01]} Qe2+ {[%emt 0:00:04]} 46. Qd2 {[%emt 0:00:02]} Qc4+ {[%emt 0:00:01]} 47. Qc3 {[%emt 0:00:02]} Qe2+ {[%emt 0:00:07]} 48. Kb3 {[%emt 0:00:16]} Qb5 {[%emt 0:00:56]} 49. g5 {[%emt 0:00:15]} h5 {[%emt 0:00:02]} 50. h4 {[%emt 0:00:28]} Ra5 {[%emt 0:00:14]} 51. Rgc1 Raa8 1/2-1/2

[Event "29th Czech Open-Rapid 2018"]
[Site "Pardubice"]
[Date "2018.07.19"]
[Round "4"]
[White "Illetsko, Jaroslav"]
[Black "Straka, Vojtech"]
[Result "0-1"]
[ECO "B10"]
[WhiteElo "2177"]
[BlackElo "1722"]
[Annotator "NA"]
[PlyCount "70"]
[EventDate "2018.07.18"]
[EventType "swiss"]
[EventCountry "CZE"]
[SourceTitle "playchess.com"]
[Source "ChessBase"]
[SourceQuality "1"]
[TimeControl "900+10"]

1. e4 {[%emt 0:00:00]} c6 {[%emt 0:00:00]} 2. Nc3 {[%emt 0:00:03]} d5 {[%emt 0:00:00]} 3. Nf3 {[%emt 0:00:10]} d4 {[%emt 0:00:00]} 4. Ne2 {[%emt 0:00:38]} c5 {[%emt 0:00:00]} 5. c3 {[%emt 0:00:06]} Nc6 {[%emt 0:00:07]} 6. d3 {[%emt 0:00:29]} e5 {[%emt 0:00:12]} 7. c4 {[%emt 0:00:30]} Bg4 {[%emt 0:01:40]} 8. Ng3 {[%emt 0:00:20]} Be7 {[%emt 0:01:10]} 9. h3 {[%emt 0:01:11]} Be6 {[%emt 0:01:20]} 10. Be2 {[%emt 0:00:39]} Nf6 {[%emt 0:00:12]} 11. O-O {[%emt 0:01:25]} O-O {[%emt 0:00:11]} 12. Ng5 {[%emt 0:00:51]} Bd7 {[%emt 0:01:08]} 13. f4 {[%emt 0:00:20]} h6 {[%emt 0:01:20]} 14. Nf3 {[%emt 0:00:08]} Bd6 {[%emt 0:00:40]} 15. fxe5 {[%emt 0:00:52]} Nxe5 {[%emt 0:00:52]} 16. Nxe5 {[%emt 0:00:10]} Bxe5 {[%emt 0:00:04]} 17. Nf5 {[%emt 0:00:05]} Bxf5 {[%emt 0:00:20]} 18. Rxf5 {[%emt 0:00:42]} Qd6 {[%emt 0:00:18]} 19. Bd2 {[%emt 0:01:19]} Rad8 {[%emt 0:00:58]} 20. a3 {[%emt 0:00:47]} b6 {[%emt 0:00:41]} 21. b4 {[%emt 0:00:12]} g6 {[%emt 0:02:21]} 22. Rf1 {[%emt 0:00:40]} Kg7 {[%emt 0:01:33]} 23. Qc1 {[%emt 0:00:48]} Rh8 {[%emt 0:00:30]} 24. Bf3 {[%emt 0:01:15]} Rdg8 {[%emt 0:00:50]} 25. b5 {[%emt 0:00:33]} g5 {[%emt 0:01:01]} 26. a4 {[%emt 0:00:17]} g4 {[%emt 0:00:48]} 27. hxg4 {[%emt 0:01:03]} Bh2+ {[%emt 0:00:32]} 28. Kh1 {[%emt 0:02:48]} h5 {[%emt 0:00:03]} 29. g5 {[%emt 0:00:06]} Ng4 {[%emt 0:00:04]} 30. g3 {[%emt 0:00:57]} Qxg3 {[%emt 0:00:24]} 31. Qe1 {[%emt 0:00:05]} Qxe1 {[%emt 0:00:30]} 32. Raxe1 {[%emt 0:00:03]} Bg3 {[%emt 0:00:10]} 33. Re2 {[%emt 0:00:06]} Ne5 {[%emt 0:00:06]} 34. Kg2 {[%emt 0:00:23]} h4 {[%emt 0:00:04]} 35. a5 {[%emt 0:00:14]} Nxd3 {[%emt 0:00:03]} 0-1

[Event "29th Czech Open-Rapid 2018"]
[Site "Pardubice"]
[Date "2018.07.19"]
[Round "4"]
[White "Vokoun, Jan"]
[Black "Harshini, A."]
[Result "0-1"]
[ECO "A48"]
[WhiteElo "2155"]
[BlackElo "1747"]
[Annotator "NA"]
[PlyCount "44"]
[EventDate "2018.07.18"]
[EventType "swiss"]
[EventCountry "CZE"]
[SourceTitle "playchess.com"]
[Source "ChessBase"]
[SourceQuality "1"]
[TimeControl "900+10"]

1. Nf3 {[%emt 0:00:00]} Nf6 {[%emt 0:00:00]} 2. d4 {[%emt 0:00:28]} g6 {[%emt 0:00:00]} 3. c3 {[%emt 0:00:09]} Bg7 {[%emt 0:00:00]} 4. Bf4 {[%emt 0:00:04]} d5 {[%emt 0:00:01]} 5. h3 {[%emt 0:00:02]} Nbd7 {[%emt 0:00:09]} 6. Nbd2 {[%emt 0:00:15]} O-O {[%emt 0:00:09]} 7. e3 {[%emt 0:00:01]} c5 {[%emt 0:00:03]} 8. Be2 {[%emt 0:01:25]} b6 {[%emt 0:00:03]} 9. O-O {[%emt 0:00:15]} Bb7 {[%emt 0:00:01]} 10. a4 {[%emt 0:00:01]} Re8 {[%emt 0:00:08]} 11. Bh2 {[%emt 0:00:12]} Ne4 {[%emt 0:00:14]} 12. Nxe4 {[%emt 0:01:02]} dxe4 {[%emt 0:00:02]} 13. Nd2 {[%emt 0:00:01]} e5 {[%emt 0:00:37]} 14. dxe5 {[%emt 0:01:08]} Nxe5 {[%emt 0:00:06]} 15. Bxe5 {[%emt 0:00:08]} Rxe5 {[%emt 0:00:38]} 16. Nc4 {[%emt 0:00:29]} Rd5 {[%emt 0:00:58]} 17. Qb3 {[%emt 0:00:40]} Qh4 {[%emt 0:01:55]} 18. Rfd1 {[%emt 0:01:47]} Rg5 {[%emt 0:05:42]} 19. Bg4 {[%emt 0:02:29]} Bd5 {[%emt 0:03:46]} 20. Rxd5 {[%emt 0:01:26]} Rxd5 {[%emt 0:00:03]} 21. Nxb6 {[%emt 0:00:01]} Rd2 {[%emt 0:00:15]} 22. g3 {[%emt 0:05:33]} Qf6 {[%emt 0:00:01]} 0-1

[Event "29th Czech Open-Rapid 2018"]
[Site "Pardubice"]
[Date "2018.07.19"]
[Round "4"]
[White "Claridge Hansen, William"]
[Black "Kusa, Jakub"]
[Result "1-0"]
[ECO "A14"]
[WhiteElo "2146"]
[BlackElo "1781"]
[Annotator "NA"]
[PlyCount "55"]
[EventDate "2018.07.18"]
[EventType "swiss"]
[EventCountry "CZE"]
[SourceTitle "playchess.com"]
[Source "ChessBase"]
[SourceQuality "1"]
[TimeControl "900+10"]

1. c4 {[%emt 0:00:00]} Nf6 {[%emt 0:00:00]} 2. g3 {[%emt 0:00:00]} e6 {[%emt 0:00:00]} 3. Bg2 {[%emt 0:00:02]} d5 {[%emt 0:00:10]} 4. Nf3 {[%emt 0:00:03]} Be7 {[%emt 0:00:06]} 5. O-O {[%emt 0:00:11]} O-O {[%emt 0:00:05]} 6. b3 {[%emt 0:00:04]} c5 {[%emt 0:00:13]} 7. cxd5 {[%emt 0:00:08]} exd5 {[%emt 0:00:14]} 8. d4 {[%emt 0:00:07]} Nc6 {[%emt 0:00:14]} 9. Bb2 {[%emt 0:00:18]} Re8 {[%emt 0:00:48]} 10. Nc3 {[%emt 0:00:18]} b6 {[%emt 0:01:02]} 11. Rc1 {[%emt 0:01:20]} Bb7 {[%emt 0:00:29]} 12. Na4 {[%emt 0:01:17]} cxd4 {[%emt 0:02:06]} 13. Nxd4 {[%emt 0:00:13]} Nxd4 {[%emt 0:00:13]} 14. Qxd4 {[%emt 0:01:01]} Bd6 {[%emt 0:00:57]} 15. e3 {[%emt 0:01:27]} Be5 {[%emt 0:00:21]} 16. Qd2 {[%emt 0:00:25]} Bxb2 {[%emt 0:01:20]} 17. Qxb2 {[%emt 0:00:07]} Qd6 {[%emt 0:00:10]} 18. Rfd1 {[%emt 0:01:29]} Rac8 {[%emt 0:01:07]} 19. Nc3 {[%emt 0:02:15]} Qe5 {[%emt 0:00:34]} 20. Rd4 {[%emt 0:00:35]} h6 {[%emt 0:03:31]} 21. h3 a6 {[%emt 0:03:07]} 22. Qd2 {[%emt 0:02:05]} Rc5 {[%emt 0:00:06]} 23. Rd1 {[%emt 0:00:43]} Rec8 {[%emt 0:00:07]} 24. Nxd5 {[%emt 0:00:46]} Nxd5 {[%emt 0:00:24]} 25. Bxd5 {[%emt 0:00:03]} Rc2 {[%emt 0:00:20]} 26. Qd3 {[%emt 0:00:44]} R8c3 {[%emt 0:00:32]} 27. Bxf7+ {[%emt 0:01:24]} Kxf7 {[%emt 0:00:45]} 28. Rd7+ {[%emt 0:00:01]} 1-0

[Event "29th Czech Open-Rapid 2018"]
[Site "Pardubice"]
[Date "2018.07.19"]
[Round "4"]
[White "Nikologorsky, Matfei"]
[Black "Khmelev, Mikhail"]
[Result "1-0"]
[ECO "C07"]
[WhiteElo "2140"]
[BlackElo "1977"]
[Annotator "NA"]
[PlyCount "149"]
[EventDate "2018.07.18"]
[EventType "swiss"]
[EventCountry "CZE"]
[SourceTitle "playchess.com"]
[Source "ChessBase"]
[SourceQuality "1"]
[TimeControl "900+10"]

1. e4 {[%emt 0:00:00]} e6 {[%emt 0:00:00]} 2. d4 {[%emt 0:00:00]} d5 {[%emt 0:00:00]} 3. Nd2 {[%emt 0:00:06]} c5 {[%emt 0:00:12]} 4. Ngf3 {[%emt 0:00:08]} Nc6 $11 {[%emt 0:00:50] LiveBook: 1064 Games} 5. Bb5 {[%emt 0:00:11]} cxd4 {[%emt 0:00:46]} 6. Nxd4 {[%emt 0:00:14]} Bd7 {[%emt 0:00:22]} 7. Nxc6 {[%emt 0:00:04]} bxc6 {[%emt 0:00:01]} 8. Bd3 {[%emt 0:00:02]} Bd6 {[%emt 0:00:06]} 9. Qe2 {[%emt 0:00:11]} Ne7 {[%emt 0:00:45]} 10. Nf3 {[%emt 0:00:22]} Ng6 {[%emt 0:00:10]} 11. e5 {[%emt 0:00:10]} Be7 {[%emt 0:00:28]} 12. O-O {[%emt 0:00:16]} O-O {[%emt 0:00:04]} 13. c4 {[%emt 0:00:18]} Rb8 {[%emt 0:01:49]} 14. g3 {[%emt 0:00:22]} Qb6 {[%emt 0:00:13]} 15. h4 {[%emt 0:00:07]} f6 {[%emt 0:00:21]} 16. exf6 {[%emt 0:01:37]} Bxf6 {[%emt 0:00:03]} 17. Ng5 {[%emt 0:00:09]} Bxg5 {[%emt 0:01:47]} 18. hxg5 {[%emt 0:02:12]} Qd4 {[%emt 0:00:05]} 19. Rd1 {[%emt 0:01:14]} Qb6 {[%emt 0:02:39]} 20. b3 {[%emt 0:00:24]} Rbe8 {[%emt 0:01:33]} 21. Bb2 {[%emt 0:01:01]} e5 {[%emt 0:01:42]} 22. Bxg6 {[%emt 0:00:38]} hxg6 {[%emt 0:00:02]} 23. cxd5 {[%emt 0:00:01]} Bg4 {[%emt 0:00:07]} 24. Qe1 {[%emt 0:01:54]} Bxd1 {[%emt 0:00:06]} 25. Rxd1 {[%emt 0:00:01]} cxd5 {[%emt 0:00:11]} 26. Rxd5 {[%emt 0:00:09]} Rf3 {[%emt 0:00:21]} 27. Kg2 {[%emt 0:01:44]} Ref8 {[%emt 0:00:01]} 28. Rd2 {[%emt 0:00:09]} e4 {[%emt 0:00:13]} 29. Bd4 {[%emt 0:00:08]} Qb7 {[%emt 0:00:32]} 30. Be3 {[%emt 0:00:08]} R3f5 {[%emt 0:00:23]} 31. Qd1 {[%emt 0:00:29]} a5 {[%emt 0:00:21]} 32. Rd7 {[%emt 0:00:18]} Qc6 {[%emt 0:00:08]} 33. Rd6 {[%emt 0:00:42]} Qb7 {[%emt 0:00:17]} 34. Kg1 {[%emt 0:00:15]} Qf7 {[%emt 0:00:06]} 35. Rd7 {[%emt 0:00:08]} Qe6 {[%emt 0:00:21]} 36. Qd4 {[%emt 0:00:50]} R5f7 {[%emt 0:00:28]} 37. Rd6 {[%emt 0:00:07]} Qf5 {[%emt 0:00:34]} 38. Rd5 {[%emt 0:00:52]} Qg4 {[%emt 0:00:12]} 39. Re5 {[%emt 0:00:06]} Qe2 {[%emt 0:00:15]} 40. Rxe4 {[%emt 0:00:23]} Qxa2 {[%emt 0:00:08]} 41. Qd5 {[%emt 0:00:24]} Qa1+ {[%emt 0:00:29]} 42. Kg2 {[%emt 0:00:01]} Qc3 {[%emt 0:00:02]} 43. Re6 {[%emt 0:01:26]} Qc7 {[%emt 0:00:41]} 44. Rxg6 {[%emt 0:00:28]} Rd8 {[%emt 0:00:26]} 45. Qc6 {[%emt 0:00:27]} Qxc6+ {[%emt 0:00:18]} 46. Rxc6 {[%emt 0:00:01]} Rb7 {[%emt 0:00:01]} 47. Ra6 {[%emt 0:01:00]} Rxb3 {[%emt 0:00:13]} 48. Rxa5 {[%emt 0:00:01]} Rb7 {[%emt 0:00:13]} 49. Bf4 {[%emt 0:00:15]} g6 {[%emt 0:00:27]} 50. Ra6 {[%emt 0:00:03]} Kh7 {[%emt 0:00:04]} 51. Kh3 {[%emt 0:00:02]} Re8 {[%emt 0:00:08]} 52. Kg4 {[%emt 0:00:04]} Rf7 {[%emt 0:00:07]} 53. Ra5 {[%emt 0:00:17]} Rfe7 {[%emt 0:00:10]} 54. Bd6 {[%emt 0:00:19]} Rd7 {[%emt 0:00:05]} 55. Ba3 {[%emt 0:00:33]} Rf7 {[%emt 0:00:44]} 56. f4 {[%emt 0:00:02]} Rd7 {[%emt 0:00:02]} 57. Bb2 {[%emt 0:00:06]} Rb7 {[%emt 0:00:09]} 58. Be5 {[%emt 0:00:05]} Rbe7 {[%emt 0:00:01]} 59. Bf6 {[%emt 0:00:22]} Rf7 {[%emt 0:00:16]} 60. Ra1 {[%emt 0:00:01]} Kg8 {[%emt 0:00:22]} 61. Kf3 {[%emt 0:00:37]} Rd7 {[%emt 0:00:33]} 62. Ra3 {[%emt 0:00:05]} Kh7 {[%emt 0:00:13]} 63. g4 {[%emt 0:00:01]} Kg8 {[%emt 0:00:34]} 64. f5 {[%emt 0:00:02]} Kf7 {[%emt 0:00:01]} 65. Kf4 {[%emt 0:00:09]} Rc8 {[%emt 0:00:22]} 66. Rh3 {[%emt 0:00:34]} Rc4+ {[%emt 0:00:18]} 67. Ke3 {[%emt 0:00:01]} gxf5 {[%emt 0:00:10]} 68. gxf5 {[%emt 0:00:07]} Rc6 {[%emt 0:00:05]} 69. Rh7+ Ke8 70. Rh8+ {[%emt 0:00:19]} Kf7 {[%emt 0:00:02]} 71. Be5 {[%emt 0:00:04]} Rc1 {[%emt 0:00:35]} 72. g6+ {[%emt 0:00:16]} Ke7 {[%emt 0:00:01]} 73. f6+ {[%emt 0:00:22]} Ke6 {[%emt 0:00:01]} 74. Re8+ {[%emt 0:00:02]} Kf5 {[%emt 0:00:15]} 75. f7 {[%emt 0:00:03]} 1-0

[Event "29th Czech Open-Rapid 2018"]
[Site "Pardubice"]
[Date "2018.07.19"]
[Round "4"]
[White "Kutynec, Vladimir"]
[Black "Burdalev, Kirill"]
[Result "0-1"]
[ECO "E91"]
[WhiteElo "2134"]
[BlackElo "2383"]
[Annotator "NA"]
[PlyCount "70"]
[EventDate "2018.07.18"]
[EventType "swiss"]
[EventCountry "CZE"]
[SourceTitle "playchess.com"]
[Source "ChessBase"]
[SourceQuality "1"]
[TimeControl "900+10"]

1. Nf3 {[%emt 0:00:00]} Nf6 {[%emt 0:00:04]} 2. c4 {[%emt 0:00:00]} g6 {[%emt 0:00:06]} 3. Nc3 {[%emt 0:00:00]} Bg7 {[%emt 0:00:46]} 4. e4 {[%emt 0:00:00]} O-O {[%emt 0:00:02]} 5. d4 {[%emt 0:00:00]} d6 {[%emt 0:00:14]} 6. Be2 {[%emt 0:00:03]} c5 {[%emt 0:00:02]} 7. d5 {[%emt 0:00:56]} e6 {[%emt 0:00:01]} 8. h3 {[%emt 0:00:04]} exd5 {[%emt 0:00:04]} 9. exd5 {[%emt 0:00:01]} Bf5 {[%emt 0:00:05]} 10. O-O {[%emt 0:00:03]} Ne4 {[%emt 0:00:01]} 11. Bd3 {[%emt 0:00:44]} Nxc3 {[%emt 0:00:33]} 12. bxc3 {[%emt 0:00:02]} Bxd3 {[%emt 0:00:59]} 13. Qxd3 {[%emt 0:00:03]} Nd7 {[%emt 0:00:15]} 14. Rb1 {[%emt 0:00:28]} Nb6 {[%emt 0:00:17]} 15. Re1 {[%emt 0:01:44]} Qd7 {[%emt 0:00:03]} 16. Bf4 {[%emt 0:01:02]} Rfe8 {[%emt 0:00:05]} 17. Ng5 {[%emt 0:01:17]} Rxe1+ {[%emt 0:06:31]} 18. Rxe1 {[%emt 0:00:03]} Rd8 {[%emt 0:00:33]} 19. Ne4 {[%emt 0:00:34]} Re8 {[%emt 0:01:11]} 20. Kf1 {[%emt 0:04:09]} Nc8 {[%emt 0:01:27]} 21. Bg5 {[%emt 0:02:44]} f5 {[%emt 0:01:07]} 22. Nf6+ {[%emt 0:01:01]} Bxf6 {[%emt 0:00:01]} 23. Bxf6 {[%emt 0:00:01]} Rxe1+ {[%emt 0:00:03]} 24. Kxe1 {[%emt 0:00:03]} Kf7 {[%emt 0:00:26]} 25. Bg5 {[%emt 0:00:13]} Qe8+ {[%emt 0:00:01]} 26. Kf1 {[%emt 0:02:04]} Nb6 {[%emt 0:00:01]} 27. Bf4 {[%emt 0:00:29]} Qa4 {[%emt 0:01:17]} 28. Bxd6 {[%emt 0:00:15]} Qxa2 {[%emt 0:01:08]} 29. Bxc5 {[%emt 0:00:10]} Nxc4 {[%emt 0:00:43]} 30. d6 {[%emt 0:00:50]} Qa1+ {[%emt 0:00:22]} 31. Ke2 {[%emt 0:00:06]} Qa2+ {[%emt 0:00:05]} 32. Kf1 {[%emt 0:00:09]} Ne5 {[%emt 0:00:17]} 33. Qb5 {[%emt 0:00:39]} Qd5 {[%emt 0:00:39]} 34. Kg1 {[%emt 0:00:27]} b6 {[%emt 0:00:05]} 35. d7 Qd3 0-1